fUST/lending_fUST_20250408
["ID","MTS","AMOUNT","RATE_DAILY","PERIOD"]
[357447244,1744069868086,-646.71,0.00026575,2]
[357447245,1744069868095,-500.0,0.00026575,2]
[357447246,1744069868105,-500.0,0.00026575,2]
[357447247,1744069868115,-802.81,0.00026575,2]
[357447248,1744069868125,-780.65,0.00026575,2]
[357447249,1744069868135,-529.74,0.00026575,2]
[357447250,1744069868144,-698.26,0.00026575,2]
[357447251,1744069868154,-542.8,0.00026575,2]
[357447252,1744069868163,-706.95,0.00026575,2]
[357447253,1744069868173,-980.21,0.00026575,2]
[357447254,1744069868183,-500.0,0.00026575,2]
[357447255,1744069868192,-500.0,0.00026575,2]
[357447256,1744069868202,-500.0,0.00026575,2]
[357447257,1744069868212,-2097.53,0.00026575,2]
[357447258,1744069868221,-543.0,0.00026575,2]
[357447259,1744069868231,-1782.29,0.00026575,2]
[357447260,1744069868241,-500.0,0.00026575,2]
[357447261,1744069868251,-500.0,0.00026575,2]
[357447262,1744069868260,-500.0,0.00026575,2]
[357447263,1744069868270,-701.32,0.00026575,2]
[357447264,1744069868280,-988.39,0.00026575,2]
[357447265,1744069868290,-1362.09,0.00026575,2]
[357447266,1744069868299,-637.07352425,0.00026575,2]
[357447267,1744069868309,-882.89,0.00026575,2]
[357447268,1744069868319,-773.83,0.00026575,2]
[357447269,1744069868328,-500.0,0.00026575,2]
[357447270,1744069868338,-1227.37,0.00026575,2]
[357447271,1744069868348,-520.09,0.00026575,2]
[357447272,1744069868357,-500.0,0.00026575,2]
[357447273,1744069868367,-2645.71,0.00026575,2]
[357447274,1744069868376,-2088.39,0.00026575,2]
[357447275,1744069868386,-500.0,0.00026575,2]
[357447276,1744069868397,-660.58,0.00026575,2]
[357447277,1744069868407,-2511.32,0.00026575,2]
[357447278,1744069868418,-612.45,0.00026575,2]
[357447279,1744069868428,-1217.19,0.00026575,2]
[357447280,1744069868438,-845.92,0.00026575,2]
[357447281,1744069868448,-1240.98,0.00026575,2]
[357447282,1744069868457,-1414.71,0.00026575,2]
[357447283,1744069868467,-1232.44,0.00026575,2]
[357447284,1744069868478,-1157.64,0.00026575,2]
[357447285,1744069868489,-4737.12,0.00026575,2]
[357447286,1744069868501,-576.29,0.00026575,2]
[357447287,1744069868510,-1002.91,0.00026575,2]
[357447288,1744069868520,-2320.11,0.00026575,2]
[357447289,1744069868530,-500.0,0.00026575,2]
[357447290,1744069868539,-1535.19,0.00026575,2]
[357447291,1744069868549,-500.0,0.00026575,2]
[357447292,1744069868572,-3065.26,0.00026575,2]
[357447293,1744069868583,-500.0,0.00026575,2]
[357447294,1744069868594,-1377.29,0.00026575,2]
[357447295,1744069868604,-1563.99,0.00026575,2]
[357447296,1744069868615,-388.52156503,0.00026575,2]
[357447297,1744069868627,-1772.83,0.00026575,2]
[357447298,1744069868638,-500.0,0.00026575,2]
[357447299,1744069868649,-500.0,0.00026575,2]
[357447300,1744069868660,-1246.5,0.00026575,2]
[357447301,1744069868670,-1765.33,0.00026575,2]
[357447302,1744069868681,-500.0,0.00026575,2]
[357447303,1744069868691,-1937.54,0.00026575,2]
[357447304,1744069868701,-1205.59,0.00026575,2]
[357447305,1744069868712,-1239.2,0.00026575,2]
[357447306,1744069868722,-500.0,0.00026575,2]
[357447307,1744069868733,-613.41,0.00026575,2]
[357447308,1744069868743,-158.6695493,0.00026575,2]
[357447309,1744069868754,-1146.31,0.00026575,2]
[357447310,1744069868765,-500.0,0.00026575,2]
[357447311,1744069868776,-523.31,0.00026575,2]
[357447312,1744069868786,-500.0,0.00026575,2]
[357447313,1744069868796,-500.0,0.00026575,2]
[357447314,1744069868806,-995.49,0.00026575,2]
[357447315,1744069868816,-8728.42,0.00026575,2]
[357447316,1744069868826,-1073.09,0.00026575,2]
[357447317,1744069868836,-500.0,0.00026575,2]
[357447318,1744069868846,-2424.22,0.00026575,2]
[357447319,1744069868856,-559.81,0.00026575,2]
[357447320,1744069868866,-1690.5,0.00026575,2]
[357447321,1744069868876,-1125.73,0.00026575,2]
[357447322,1744069868886,-544.97,0.00026575,2]
[357447323,1744069868896,-808.68,0.00026575,2]
[357447324,1744069868907,-500.0,0.00026575,2]
[357447325,1744069868921,-231.28369723,0.0002678,2]
[357447326,1744069868931,-783.73948285,0.00026849,3]
[357447327,1744069868941,-419.36665037,0.00026849,3]
[357447328,1744069868951,-500.0,0.00026849,2]
[357447329,1744069868962,-813.25,0.00026849,2]
[357447330,1744069868972,-686.82,0.00026849,2]
[357447331,1744069868983,-646.71,0.00026849,2]
[357447332,1744069868994,-500.0,0.00026849,2]
[357447333,1744069869004,-500.0,0.00026849,2]
[357447334,1744069869015,-802.81,0.00026849,2]
[357447335,1744069869026,-780.65,0.00026849,2]
[357447336,1744069869036,-529.74,0.00026849,2]
[357447337,1744069869046,-698.26,0.00026849,2]
[357447338,1744069869056,-542.8,0.00026849,2]
[357447339,1744069869066,-706.95,0.00026849,2]
[357447340,1744069869077,-980.21,0.00026849,2]
[357447341,1744069869088,-500.0,0.00026849,2]
[357447342,1744069869098,-500.0,0.00026849,2]
[357447343,1744069869108,-500.0,0.00026849,2]
[357447344,1744069869118,-2097.53,0.00026849,2]
[357447345,1744069869128,-543.0,0.00026849,2]
[357447346,1744069869139,-1782.29,0.00026849,2]
[357447347,1744069869149,-500.0,0.00026849,2]
[357447348,1744069869159,-500.0,0.00026849,2]
[357447349,1744069869170,-500.0,0.00026849,2]
[357447350,1744069869180,-701.32,0.00026849,2]
[357447351,1744069869192,-988.39,0.00026849,2]
[357447352,1744069869208,-1362.09,0.00026849,2]
[357447353,1744069869223,-882.89,0.00026849,2]
[357447354,1744069869235,-773.83,0.00026849,2]
[357447355,1744069869246,-500.0,0.00026849,2]
[357447356,1744069869256,-1227.37,0.00026849,2]
[357447357,1744069869269,-520.09,0.00026849,2]
[357447358,1744069869281,-500.0,0.00026849,2]
[357447359,1744069869291,-2645.71,0.00026849,2]
[357447360,1744069869301,-2088.39,0.00026849,2]
[357447361,1744069869311,-500.0,0.00026849,2]
[357447362,1744069869322,-660.58,0.00026849,2]
[357447363,1744069869332,-2511.32,0.00026849,2]
[357447364,1744069869343,-1217.19,0.00026849,2]
[357447365,1744069869353,-845.92,0.00026849,2]
[357447366,1744069869364,-1240.98,0.00026849,2]
[357447367,1744069869374,-1414.71,0.00026849,2]
[357447368,1744069869385,-1232.44,0.00026849,2]
[357447369,1744069869395,-1157.64,0.00026849,2]
[357447370,1744069869405,-4737.12,0.00026849,2]
[357447371,1744069869415,-576.29,0.00026849,2]
[357447372,1744069869426,-151.0,0.00026849,7]
[357447373,1744069869436,-262.675955,0.00026849,7]
[357447374,1744069869446,-1002.91,0.00026849,2]
[357447375,1744069869456,-2320.11,0.00026849,2]
[357447376,1744069869466,-500.0,0.00026849,2]
[357447377,1744069869476,-1535.19,0.00026849,2]
[357447378,1744069869485,-500.0,0.00026849,2]
[357447379,1744069869496,-3065.26,0.00026849,2]
[357447380,1744069869506,-500.0,0.00026849,2]
[357447381,1744069869516,-1377.29,0.00026849,2]
[357447382,1744069869526,-1563.99,0.00026849,2]
[357447383,1744069869537,-1772.83,0.00026849,2]
[357447384,1744069869547,-500.0,0.00026849,2]
[357447385,1744069869557,-1246.5,0.00026849,2]
[357447386,1744069869567,-500.0,0.00026849,2]
[357447387,1744069869578,-1765.33,0.00026849,2]
[357447388,1744069869587,-500.0,0.00026849,2]
[357447389,1744069869598,-1937.54,0.00026849,2]
[357447390,1744069869607,-1205.59,0.00026849,2]
[357447391,1744069869618,-1239.2,0.00026849,2]
[357447392,1744069869627,-500.0,0.00026849,2]
[357447393,1744069869637,-613.41,0.00026849,2]
[357447394,1744069869647,-1146.31,0.00026849,2]
[357447395,1744069869657,-500.0,0.00026849,2]
[357447396,1744069869667,-523.31,0.00026849,2]
[357447397,1744069869677,-500.0,0.00026849,2]
[357447398,1744069869687,-500.0,0.00026849,2]
[357447399,1744069869696,-995.49,0.00026849,2]
[357447400,1744069869706,-8728.42,0.00026849,2]
[357447401,1744069869716,-1073.09,0.00026849,2]
[357447402,1744069869726,-500.0,0.00026849,2]
[357447403,1744069869736,-2424.22,0.00026849,2]
[357447404,1744069869746,-559.81,0.00026849,2]
[357447405,1744069869756,-1690.5,0.00026849,2]
[357447406,1744069869767,-1125.73,0.00026849,2]
[357447407,1744069869776,-544.97,0.00026849,2]
[357447408,1744069869786,-808.68,0.00026849,2]
[357447409,1744069869796,-500.0,0.00026849,2]
[357447410,1744069869806,-1000.0,0.00026852,2]
[357447411,1744069869816,-1000.0,0.00026852,2]
[357447412,1744069869829,-1000.0,0.00026852,2]
[357447413,1744069869839,-1000.0,0.00026852,2]
[357447414,1744069869849,-1003.59398376,0.00026852,2]
[357447415,1744069869859,-1000.0,0.00026852,2]
[357447416,1744069869869,-1000.0,0.00026852,2]
[357447417,1744069869879,-1000.0,0.00026852,2]
[357447418,1744069869890,-1000.0,0.00026852,2]
[357447419,1744069869899,-1000.0,0.00026852,2]
[357447420,1744069869911,-1000.0,0.00026852,2]
[357447421,1744069869923,-783.73948285,0.00027,3]
[357447422,1744069869933,-783.73948285,0.00027,3]
[357447423,1744069869943,-500.0,0.00027123,2]
[357447424,1744069869954,-813.25,0.00027123,2]
[357447425,1744069869965,-686.82,0.00027123,2]
[357447426,1744069869975,-646.71,0.00027123,2]
[357447427,1744069869985,-222.05246367,0.00027123,2]
[357447428,1744069869999,-500.0,0.00027123,2]
[357447429,1744069870009,-802.81,0.00027123,2]
[357447430,1744069870020,-780.65,0.00027123,2]
[357447431,1744069870030,-529.74,0.00027123,2]
[357447432,1744069870040,-698.26,0.00027123,2]
[357447433,1744069870050,-542.8,0.00027123,2]
[357447434,1744069870060,-706.95,0.00027123,2]
[357447435,1744069870070,-980.21,0.00027123,2]
[357447436,1744069870080,-500.0,0.00027123,2]
[357447437,1744069870090,-500.0,0.00027123,2]
[357447438,1744069870100,-500.0,0.00027123,2]
[357447439,1744069870111,-2097.53,0.00027123,2]
[357447440,1744069870121,-543.0,0.00027123,2]
[357447441,1744069870131,-1782.29,0.00027123,2]
[357447442,1744069870141,-500.0,0.00027123,2]
[357447443,1744069870151,-500.0,0.00027123,2]
[357447444,1744069870162,-500.0,0.00027123,2]
[357447445,1744069870172,-701.32,0.00027123,2]
[357447446,1744069870184,-988.39,0.00027123,2]
[357447447,1744069870195,-1362.09,0.00027123,2]
[357447448,1744069870205,-882.89,0.00027123,2]
[357447449,1744069870214,-773.83,0.00027123,2]
[357447450,1744069870224,-500.0,0.00027123,2]
[357447451,1744069870235,-1227.37,0.00027123,2]
[357447452,1744069870245,-520.09,0.00027123,2]
[357447453,1744069870255,-500.0,0.00027123,2]
[357447454,1744069870266,-2645.71,0.00027123,2]
[357447455,1744069870276,-2088.39,0.00027123,2]
[357447456,1744069870286,-500.0,0.00027123,2]
[357447457,1744069870296,-660.58,0.00027123,2]
[357447458,1744069870307,-2511.32,0.00027123,2]
[357447459,1744069870317,-1217.19,0.00027123,2]
[357447460,1744069870327,-845.92,0.00027123,2]
[357447461,1744069870337,-1240.98,0.00027123,2]
[357447462,1744069870347,-1414.71,0.00027123,2]
[357447463,1744069870357,-1232.44,0.00027123,2]
[357447464,1744069870368,-1157.64,0.00027123,2]
[357447465,1744069870379,-4737.12,0.00027123,2]
[357447466,1744069870389,-576.29,0.00027123,2]
[357447467,1744069870400,-1002.91,0.00027123,2]
[357447468,1744069870410,-2320.11,0.00027123,2]
[357447469,1744069870420,-572.65,0.00027123,2]
[357447470,1744069870430,-1535.19,0.00027123,2]
[357447471,1744069870440,-545.6,0.00027123,2]
[357447472,1744069870450,-3065.26,0.00027123,2]
[357447473,1744069870460,-500.0,0.00027123,2]
[357447474,1744069870470,-1377.29,0.00027123,2]
[357447475,1744069870480,-1563.99,0.00027123,2]
[357447476,1744069870490,-1772.83,0.00027123,2]
[357447477,1744069870500,-500.0,0.00027123,2]
[357447478,1744069870510,-1246.5,0.00027123,2]
[357447479,1744069870668,-500.0,0.00027123,2]
[357447480,1744069870678,-1765.33,0.00027123,2]
[357447481,1744069870688,-500.0,0.00027123,2]
[357447482,1744069870698,-1937.54,0.00027123,2]
[357447483,1744069870708,-1205.59,0.00027123,2]
[357447484,1744069870718,-1239.2,0.00027123,2]
[357447485,1744069870728,-500.0,0.00027123,2]
[357447486,1744069870738,-613.41,0.00027123,2]
[357447487,1744069870748,-1146.31,0.00027123,2]
[357447488,1744069870758,-500.0,0.00027123,2]
[357447489,1744069870769,-523.31,0.00027123,2]
[357447490,1744069870779,-500.0,0.00027123,2]
[357447491,1744069870788,-626.78,0.00027123,2]
[357447492,1744069870798,-995.49,0.00027123,2]
[357447493,1744069870808,-8728.42,0.00027123,2]
[357447494,1744069870818,-1073.09,0.00027123,2]
[357447495,1744069870827,-500.0,0.00027123,2]
[357447496,1744069870838,-2424.22,0.00027123,2]
[357447497,1744069870847,-559.81,0.00027123,2]
[357447498,1744069870858,-1690.5,0.00027123,2]
[357447499,1744069870867,-1125.73,0.00027123,2]
[357447500,1744069870877,-544.97,0.00027123,2]
[357447501,1744069870887,-808.68,0.00027123,2]
[357447502,1744069870897,-500.0,0.00027123,2]
[357447503,1744069870907,-343.9182,0.00027397,2]
[357447504,1744069870921,-500.0,0.00027397,2]
[357447505,1744069870930,-813.25,0.00027397,2]
[357447506,1744069870941,-686.82,0.00027397,2]
[357447507,1744069870951,-646.71,0.00027397,2]
[357447508,1744069870961,-250.36,0.00027397,2]
[357447509,1744069870971,-802.81,0.00027397,2]
[357447510,1744069870981,-780.65,0.00027397,2]
[357447511,1744069870992,-529.74,0.00027397,2]
[357447512,1744069871003,-698.26,0.00027397,2]
[357447513,1744069871015,-542.8,0.00027397,2]
[357447514,1744069871025,-706.95,0.00027397,2]
[357447515,1744069871035,-980.21,0.00027397,2]
[357447516,1744069871045,-500.0,0.00027397,2]
[357447517,1744069871055,-500.0,0.00027397,2]
[357447518,1744069871066,-500.0,0.00027397,2]
[357447519,1744069871076,-2097.53,0.00027397,2]
[357447520,1744069871086,-543.0,0.00027397,2]
[357447521,1744069871097,-1782.29,0.00027397,2]
[357447522,1744069871107,-500.0,0.00027397,2]
[357447523,1744069871118,-500.0,0.00027397,2]
[357447524,1744069871129,-500.0,0.00027397,2]
[357447525,1744069871139,-701.32,0.00027397,2]
[357447526,1744069871150,-988.39,0.00027397,2]
[357447527,1744069871159,-1362.09,0.00027397,2]
[357447528,1744069871170,-882.89,0.00027397,2]
[357447529,1744069871180,-773.83,0.00027397,2]
[357447530,1744069871190,-393.09,0.00027397,2]
[357447531,1744069871201,-1227.37,0.00027397,2]
[357447532,1744069871211,-520.09,0.00027397,2]
[357447533,1744069871221,-500.0,0.00027397,2]
[357447534,1744069871231,-2645.71,0.00027397,2]
[357447535,1744069871241,-2088.39,0.00027397,2]
[357447536,1744069871251,-500.0,0.00027397,2]
[357447537,1744069871260,-660.58,0.00027397,2]
[357447538,1744069871273,-2511.32,0.00027397,2]
[357447539,1744069871284,-1217.19,0.00027397,2]
[357447540,1744069871294,-845.92,0.00027397,2]
[357447541,1744069871304,-1240.98,0.00027397,2]
[357447542,1744069871314,-1414.71,0.00027397,2]
[357447543,1744069871324,-1232.44,0.00027397,2]
[357447544,1744069871334,-1157.64,0.00027397,2]
[357447545,1744069871344,-4737.12,0.00027397,2]
[357447546,1744069871354,-576.29,0.00027397,2]
[357447547,1744069871364,-1002.91,0.00027397,2]
[357447548,1744069871374,-2320.11,0.00027397,2]
[357447549,1744069871384,-1535.19,0.00027397,2]
[357447550,1744069871394,-3065.26,0.00027397,2]
[357447551,1744069871404,-500.0,0.00027397,2]
[357447552,1744069871414,-1377.29,0.00027397,2]
[357447553,1744069871424,-1563.99,0.00027397,2]
[357447554,1744069871435,-1772.83,0.00027397,2]
[357447555,1744069871444,-500.0,0.00027397,2]
[357447556,1744069871454,-1246.5,0.00027397,2]
[357447557,1744069871464,-500.0,0.00027397,2]
[357447558,1744069871475,-1765.33,0.00027397,2]
[357447559,1744069871485,-500.0,0.00027397,2]
[357447560,1744069871495,-1937.54,0.00027397,2]
[357447561,1744069871505,-1205.59,0.00027397,2]
[357447562,1744069871516,-1239.2,0.00027397,2]
[357447563,1744069871526,-500.0,0.00027397,2]
[357447564,1744069871536,-613.41,0.00027397,2]
[357447565,1744069871546,-1146.31,0.00027397,2]
[357447566,1744069871557,-500.0,0.00027397,2]
[357447567,1744069871567,-523.31,0.00027397,2]
[357447568,1744069871576,-995.49,0.00027397,2]
[357447569,1744069871586,-8728.42,0.00027397,2]
[357447570,1744069871596,-1073.09,0.00027397,2]
[357447571,1744069871606,-2424.22,0.00027397,2]
[357447572,1744069871616,-559.81,0.00027397,2]
[357447573,1744069871626,-1690.5,0.00027397,2]
[357447574,1744069871637,-1125.73,0.00027397,2]
[357447575,1744069871647,-544.97,0.00027397,2]
[357447576,1744069871656,-808.68,0.00027397,2]
[357447577,1744069871666,-590.19,0.00027397,2]
[357447578,1744069871677,-159.069288,0.00027397,120]
[357447579,1744069871687,-151.165071,0.00027397,7]
[357447580,1744069871697,-500.0,0.00027397,5]
[357447581,1744069871707,-151.0,0.00027452,7]
[357447582,1744069871717,-151.0,0.00027452,7]
[357447583,1744069871727,-151.0,0.00027452,2]
[357447584,1744069871737,-290.742792,0.00027452,7]
[357447585,1744069871748,-290.742792,0.00027452,7]
[357447586,1744069871758,-594.65960246,0.00027452,5]
[357447587,1744069871769,-500.0,0.00027452,5]
[357447588,1744069871780,-955.31302235,0.00027652,5]
[357447589,1744069871790,-1000.0,0.00027652,5]
[357447590,1744069871801,-1000.0,0.00027652,5]
[357447591,1744069871811,-204.54017273,0.00027671,17]
[357447592,1744069871821,-500.0,0.00027671,2]
[357447593,1744069871831,-813.25,0.00027671,2]
[357447594,1744069871841,-686.82,0.00027671,2]
[357447595,1744069871851,-646.71,0.00027671,2]
[357447596,1744069871860,-802.81,0.00027671,2]
[357447597,1744069871870,-780.65,0.00027671,2]
[357447598,1744069871881,-529.74,0.00027671,2]
[357447599,1744069871891,-698.26,0.00027671,2]
[357447600,1744069871901,-542.8,0.00027671,2]
[357447601,1744069871915,-706.95,0.00027671,2]
[357447602,1744069871924,-980.21,0.00027671,2]
[357447603,1744069871934,-230.01,0.00027671,2]
[357447604,1744069871944,-500.0,0.00027671,2]
[357447605,1744069871955,-489.48766062,0.00027671,2]
[357447606,1744069871965,-2097.53,0.00027671,2]
[357447607,1744069871975,-543.0,0.00027671,2]
[357447608,1744069871988,-1782.29,0.00027671,2]
[357447609,1744069871998,-285.27081871,0.00027671,2]
[357447610,1744069872008,-500.0,0.00027671,2]
[357447611,1744069872021,-500.0,0.00027671,2]
[357447612,1744069872031,-701.32,0.00027671,2]
[357447613,1744069872041,-988.39,0.00027671,2]
[357447614,1744069872051,-1362.09,0.00027671,2]
[357447615,1744069872061,-882.89,0.00027671,2]
[357447616,1744069872071,-773.83,0.00027671,2]
[357447617,1744069872081,-1227.37,0.00027671,2]
[357447618,1744069872091,-520.09,0.00027671,2]
[357447619,1744069872102,-500.0,0.00027671,2]
[357447620,1744069872112,-2645.71,0.00027671,2]
[357447621,1744069872122,-2088.39,0.00027671,2]
[357447622,1744069872132,-500.0,0.00027671,2]
[357447623,1744069872142,-660.58,0.00027671,2]
[357447624,1744069872153,-2511.32,0.00027671,2]
[357447625,1744069872162,-1217.19,0.00027671,2]
[357447626,1744069872173,-845.92,0.00027671,2]
[357447627,1744069872183,-1240.98,0.00027671,2]
[357447628,1744069872193,-1414.71,0.00027671,2]
[357447629,1744069872203,-1232.44,0.00027671,2]
[357447630,1744069872213,-1157.64,0.00027671,2]
[357447631,1744069872224,-4737.12,0.00027671,2]
[357447632,1744069872234,-576.29,0.00027671,2]
[357447633,1744069872244,-1002.91,0.00027671,2]
[357447634,1744069872254,-2320.11,0.00027671,2]
[357447635,1744069872264,-1535.19,0.00027671,2]
[357447636,1744069872277,-3065.26,0.00027671,2]
[357447637,1744069872287,-500.0,0.00027671,2]
[357447638,1744069872297,-1377.29,0.00027671,2]
[357447639,1744069872307,-1563.99,0.00027671,2]
[357447640,1744069872316,-1772.83,0.00027671,2]
[357447641,1744069872326,-190.73412388,0.00027671,2]
[357447642,1744069872336,-1246.5,0.00027671,2]
[357447643,1744069872347,-320.1,0.00027671,2]
[357447644,1744069872357,-1765.33,0.00027671,2]
[357447645,1744069872367,-264.06,0.00027671,2]
[357447646,1744069872377,-1937.54,0.00027671,2]
[357447647,1744069872388,-1205.59,0.00027671,2]
[357447648,1744069872398,-1239.2,0.00027671,2]
[357447649,1744069872409,-347.16,0.00027671,2]
[357447650,1744069872420,-613.41,0.00027671,2]
[357447651,1744069872430,-1146.31,0.00027671,2]
[357447652,1744069872441,-500.0,0.00027671,2]
[357447653,1744069872451,-523.31,0.00027671,2]
[357447654,1744069872462,-995.49,0.00027671,2]
[357447655,1744069872472,-8728.42,0.00027671,2]
[357447656,1744069872483,-1073.09,0.00027671,2]
[357447657,1744069872493,-2424.22,0.00027671,2]
[357447658,1744069872504,-559.81,0.00027671,2]
[357447659,1744069872515,-1690.5,0.00027671,2]
[357447660,1744069872525,-1125.73,0.00027671,2]
[357447661,1744069872535,-544.97,0.00027671,2]
[357447662,1744069872545,-808.68,0.00027671,2]
[357447663,1744069872555,-522.86971226,0.00027945,2]
[357447664,1744069872565,-813.25,0.00027945,2]
[357447665,1744069872575,-686.82,0.00027945,2]
[357447666,1744069872586,-646.71,0.00027945,2]
[357447667,1744069872595,-802.81,0.00027945,2]
[357447668,1744069872606,-780.65,0.00027945,2]
[357447669,1744069872616,-529.74,0.00027945,2]
[357447670,1744069872626,-698.26,0.00027945,2]
[357447671,1744069872637,-542.8,0.00027945,2]
[357447672,1744069872647,-706.95,0.00027945,2]
[357447673,1744069872656,-980.21,0.00027945,2]
[357447674,1744069872667,-460.26447422,0.00027945,2]
[357447675,1744069872678,-2097.53,0.00027945,2]
[357447676,1744069872688,-543.0,0.00027945,2]
[357447677,1744069872698,-1782.29,0.00027945,2]
[357447678,1744069872708,-396.1,0.00027945,2]
[357447679,1744069872719,-206.16554278,0.00027945,2]
[357447680,1744069872729,-701.32,0.00027945,2]
[357447681,1744069872739,-988.39,0.00027945,2]
[357447682,1744069872749,-1362.09,0.00027945,2]
[357447683,1744069872759,-882.89,0.00027945,2]
[357447684,1744069872771,-773.83,0.00027945,2]
[357447685,1744069872780,-1227.37,0.00027945,2]
[357447686,1744069872790,-520.09,0.00027945,2]
[357447687,1744069872801,-500.0,0.00027945,2]
[357447688,1744069872810,-2645.71,0.00027945,2]
[357447689,1744069872821,-2088.39,0.00027945,2]
[357447690,1744069872831,-500.0,0.00027945,2]
[357447691,1744069872840,-660.58,0.00027945,2]
[357447692,1744069872850,-2511.32,0.00027945,2]
[357447693,1744069872860,-1217.19,0.00027945,2]
[357447694,1744069872870,-845.92,0.00027945,2]
[357447695,1744069872881,-1240.98,0.00027945,2]
[357447696,1744069872890,-1414.71,0.00027945,2]
[357447697,1744069872902,-1232.44,0.00027945,2]
[357447698,1744069872917,-1157.64,0.00027945,2]
[357447699,1744069872935,-4737.12,0.00027945,2]
[357447700,1744069872952,-576.29,0.00027945,2]
[357447701,1744069872962,-1002.91,0.00027945,2]
[357447702,1744069872972,-2320.11,0.00027945,2]
[357447703,1744069872982,-1535.19,0.00027945,2]
[357447704,1744069872992,-3065.26,0.00027945,2]
[357447705,1744069873002,-500.0,0.00027945,2]
[357447706,1744069873012,-1377.29,0.00027945,2]
[357447707,1744069873023,-1563.99,0.00027945,2]
[357447708,1744069873033,-1772.83,0.00027945,2]
[357447709,1744069873042,-1246.5,0.00027945,2]
[357447710,1744069873174,-1765.33,0.00027945,2]
[357447711,1744069873185,-1937.54,0.00027945,2]
[357447712,1744069873195,-1205.59,0.00027945,2]
[357447713,1744069873205,-1239.2,0.00027945,2]
[357447714,1744069873216,-613.41,0.00027945,2]
[357447715,1744069873226,-1146.31,0.00027945,2]
[357447716,1744069873235,-366.52,0.00027945,2]
[357447717,1744069873245,-523.31,0.00027945,2]
[357447718,1744069873255,-995.49,0.00027945,2]
[357447719,1744069873265,-8728.42,0.00027945,2]
[357447720,1744069873275,-1073.09,0.00027945,2]
[357447721,1744069873286,-2424.22,0.00027945,2]
[357447722,1744069873297,-559.81,0.00027945,2]
[357447723,1744069873307,-1690.5,0.00027945,2]
[357447724,1744069873317,-1125.73,0.00027945,2]
[357447725,1744069873326,-544.97,0.00027945,2]
[357447726,1744069873336,-808.68,0.00027945,2]
[357447727,1744069873347,-1000.0,0.00027952,5]
[357447728,1744069873357,-1000.0,0.00028069,5]
[357447729,1744069873367,-1000.0,0.00028069,5]
[357447730,1744069873378,-1000.0,0.00028069,2]
[357447731,1744069873388,-252.3801,0.00028069,7]
[357447732,1744069873398,-252.3801,0.00028069,7]
[357447733,1744069873408,-442.522977,0.00028069,7]
[357447734,1744069873418,-442.522977,0.00028069,7]
[357447735,1744069873428,-239.84119403,0.00028149,2]
[357447736,1744069873440,-813.45754438,0.00028219,2]
[357447737,1744069873450,-686.93577496,0.00028219,2]
[357447738,1744069873460,-646.84291464,0.00028219,2]
[357447739,1744069873470,-802.94378136,0.00028219,2]
[357447740,1744069873480,-780.86790896,0.00028219,2]
[357447741,1744069873491,-529.82562964,0.00028219,2]
[357447742,1744069873501,-698.30585631,0.00028219,2]
[357447743,1744069873511,-543.02,0.00028219,2]